bitfinex-derivatives/quotes_SOLF0:USTF0_20240910
["timestamp","ask_amount","ask_price","bid_price","bid_amount"]
[1725938146201,22.56,133.3,133.26,8.05]
[1725938146401,27.07804577,133.29,133.26,8.05]
[1725938146710,25.936,133.29,133.26,8.05]
[1725938147302,3.376,133.29,133.26,8.05]
[1725938147502,3.3763,133.28,133.24,2.7217]
[1725938147703,3.3763,133.28,133.24,10.7717]
[1725938149612,30.61,133.3,133.24,10.7717]
[1725938149911,22.56,133.28,133.24,10.7717]
[1725938150211,26.2486169,133.28,133.24,10.7717]
[1725938150800,26.2486169,133.28,133.24,9.3612]
[1725938150801,22.56,133.27,133.24,9.3612]
[1725938151214,3.3767,133.26,133.24,9.3612]
[1725938152303,3.6886169,133.28,133.18,1.318]
[1725938152512,22.56,133.26,133.21,8.05]
[1725938152704,26.27414626,133.26,133.21,8.05]
[1725938153514,3.3773,133.24,133.21,8.05]
[1725938155813,3.3775,133.23,133.19,4.745]
[1725938156008,3.3775,133.23,133.19,12.795]
[1725938157413,3.3777,133.22,133.19,12.795]
[1725938158717,3.3779,133.21,133.19,9.4167]
[1725938159910,3.3779,133.21,133.19,1.3667]
[1725938160112,22.56,133.23,133.19,1.3667]
[1725938160718,3.3782,133.2,133.19,1.3667]
[1725938161720,3.378,133.21,133.19,1.3667]
[1725938166623,3.3782,133.2,133.18,1.318]
[1725938166824,30.61,133.22,133.17,1.3577]
[1725938167026,3.3784,133.2,133.17,3.3789]
[1725938167219,30.61,133.22,133.16,8.05]
[1725938168418,30.61,133.22,133.16,3.3791]
[1725938169227,22.56,133.19,133.15,11.4293]
[1725938169825,25.9386,133.19,133.15,11.4293]
[1725938170427,3.3787,133.18,133.15,8.05]
[1725938171634,3.3787,133.18,133.14,3.3796]
[1725938172922,3.3789,133.17,133.14,3.3796]
[1725938173830,22.56,133.15,133.12,3.38]
[1725938174223,22.56,133.15,133.13,3.3799]
[1725938174823,22.56,133.15,133.12,8.05]
[1725938175828,22.56,133.15,133.13,3.3799]
[1725938176029,3.3793,133.16,133.13,3.3799]
[1725938178231,3.3793,133.16,133.12,11.4301]
[1725938178632,25.9393,133.16,133.12,11.4301]
[1725938182837,3.3793,133.16,133.12,11.4301]
[1725938183034,25.9393,133.16,133.13,3.3799]
[1725938187336,3.3793,133.16,133.13,3.3799]
[1725938187536,22.56,133.15,133.13,3.3799]
[1725938187927,22.56,133.15,133.12,7.11319524]
[1725938188133,22.56,133.15,133.12,11.78309524]
[1725938188434,30.61,133.18,133.12,11.78309524]
[1725938188630,30.61,133.18,133.14,3.3797]
[1725938188838,33.9888,133.18,133.14,3.3797]
[1725938189742,22.56,133.16,133.14,3.3797]
[1725938190241,25.9388,133.18,133.15,3.3794]
[1725938190534,22.56,133.18,133.15,3.3794]
[1725938190940,22.56,133.18,133.16,3.3791]
[1725938191244,22.56,133.18,133.13,8.05]
[1725938192234,22.56,133.18,133.15,3.3793]
[1725938193435,3.3782,133.2,133.16,3.379]
[1725938193642,22.56,133.19,133.15,8.05]
[1725938193831,11.4282,133.2,133.15,8.05]
[1725938193832,22.56,133.2,133.15,8.05]
[1725938194234,3.4534,133.27,133.16,8.05]
[1725938194235,3.72896002,133.22,133.16,8.05]
[1725938194435,8.05,133.22,133.16,8.05]
[1725938194636,15.10218151,133.22,133.18,3.3786]
[1725938194834,22.56,133.21,133.18,3.3786]
[1725938197541,22.56,133.21,133.17,1.3985]
[1725938198144,22.56,133.21,133.18,3.3785]
[1725938199039,22.56,133.21,133.19,3.3784]
[1725938199236,30.61,133.22,133.19,3.3784]
[1725938199545,22.56,133.22,133.17,9.4485]
[1725938200747,25.9378,133.22,133.19,3.3782]
[1725938209152,22.56,133.22,133.19,3.3782]
[1725938211458,25.9377,133.22,133.19,3.3782]
[1725938212871,25.9377,133.22,133.18,3.3786]
[1725938219078,30.61,133.22,133.17,1.3985]
[1725938219769,3.3781,133.21,133.17,4.7772]
[1725938220982,3.3782,133.2,133.17,4.7772]
[1725938221173,30.61,133.22,133.17,1.3985]
[1725938221369,22.56,133.2,133.16,3.3791]
[1725938221681,3.3787,133.19,133.14,8.05]
[1725938221882,3.3787,133.19,133.16,3.3792]
[1725938223871,3.3787,133.18,133.15,3.3794]
[1725938224272,22.56,133.2,133.14,8.05]
[1725938224482,25.9383,133.2,133.14,8.05]
[1725938225475,25.9383,133.2,133.16,3.379]
[1725938229181,3.3785,133.19,133.16,3.379]
[1725938229682,25.9385,133.19,133.16,3.379]
[1725938230182,3.3787,133.18,133.15,3.3794]
[1725938230581,22.56,133.19,133.11,1.3676]
[1725938230782,30.61,133.17,133.12,3.38]
[1725938231084,30.61,133.17,133.11,1.3676]
[1725938231383,30.59,133.19,133.13,8.05]
[1725938231580,30.59,133.19,133.14,8.05]
[1725938232879,3.3788,133.18,133.15,3.3793]
[1725938234084,3.3789,133.17,133.14,3.3796]
[1725938234590,3.3792,133.16,133.11,9.4176]
[1725938235484,3.3795,133.15,133.12,3.38]
[1725938241894,3.3795,133.15,133.11,4.7479]
[1725938242198,3.3795,133.15,133.11,12.7979]
[1725938242891,3.3795,133.15,133.12,3.3801]
[1725938244587,3.3798,133.14,133.11,3.3803]
[1725938244893,22.54,133.15,133.1,9.4328]
[1725938245386,25.9196,133.15,133.12,3.3802]
[1725938245998,30.59,133.15,133.06,2.7373]
[1725938246195,22.54,133.13,133.06,4.122]
[1725938246388,30.59,133.12,133.06,12.172]
[1725938246998,3.3806,133.11,133.07,3.3812]
[1725938247199,3.3806,133.11,133.06,12.172]
[1725938248201,3.3806,133.11,133.08,3.3812]
[1725938248997,3.3807,133.1,133.07,3.3814]
[1725938249796,30.59,133.12,133.01,8.05]
[1725938249797,30.59,133.08,133.01,8.05]
[1725938249989,22.54,133.08,133.03,8.05]
[1725938251199,25.9214,133.08,133.04,3.3822]
[1725938252997,3.3814,133.08,133.04,3.3822]
[1725938254401,3.381,133.09,133.05,3.3819]
[1725938266212,3.3813,133.08,133.04,3.3822]
[1725938269104,30.59,133.09,133.03,12.7857]
[1725938269311,30.59,133.07,133.02,3.70263721]
[1725938269610,3.3824,133.04,132.99,10.7856]
[1725938269808,3.3824,133.04,133.0,3.383]
[1725938270312,8.05,133.04,132.99,2.7356]
[1725938270705,11.4324,133.04,133.0,3.3832]
[1725938272307,11.4324,133.04,132.99,2.7356]
[1725938272308,8.05,133.04,132.99,2.7356]
[1725938272809,11.4324,133.04,133.0,3.3832]
[1725938273207,8.05,133.04,133.0,8.05]
[1725938274314,8.05,133.04,133.01,3.383]
[1725938279408,11.4323,133.04,133.01,3.383]
[1725938279809,24.6035,133.09,133.01,3.383]
[1725938280010,24.6035,133.09,132.99,12.1476]
[1725938280011,24.6035,133.09,133.0,8.05]
[1725938280309,8.05,133.07,133.02,8.05]
[1725938280514,3.3818,133.06,133.02,8.05]
[1725938280715,8.05,133.07,133.02,8.05]
[1725938281113,11.4316,133.07,133.03,3.3824]
[1725938282017,3.3816,133.07,133.03,3.3824]
[1725938282816,33.9713,133.08,133.04,3.3822]
[1725938283018,30.59,133.08,133.02,8.05]
[1725938283418,3.3816,133.07,133.03,3.3824]
[1725938284710,33.9713,133.08,133.04,3.3822]
[1725938285423,8.05,133.08,133.05,3.3818]
[1725938285617,8.05,133.08,133.02,8.05]
[1725938286215,8.05,133.09,133.03,8.05]
[1725938286814,8.05,133.09,133.06,3.3815]
[1725938287017,8.05,133.09,133.04,9.3626]
[1725938287217,8.05,133.09,133.04,1.3126]
[1725938287521,11.4311,133.09,133.05,3.382]
[1725938290917,22.54,133.09,133.04,1.3126]
[1725938291114,8.05,133.09,133.04,9.3626]
[1725938291415,8.05,133.09,133.06,3.3817]
[1725938291622,15.19884421,133.1,133.06,3.3817]
[1725938291822,8.05,133.1,133.05,8.05]
[1725938292023,8.05,133.1,133.07,3.3814]
[1725938292217,8.05,133.1,133.05,8.05]
[1725938292931,8.05,133.1,133.05,11.85075187]
[1725938293222,3.76766917,133.12,133.08,3.3812]
[1725938293223,33.9703,133.12,133.08,3.3812]
[1725938293422,37.71917218,133.12,133.08,3.3812]
[1725938293820,22.54,133.12,133.09,3.3808]
[1725938294017,22.54,133.12,133.06,11.77105263]
[1725938294416,22.54,133.12,133.07,8.05]
[1725938294614,8.05,133.13,133.07,8.05]
[1725938294823,22.54,133.14,133.09,8.05]
[1725938295224,22.54,133.14,133.1,3.3805]
[1725938295616,15.27508872,133.15,133.1,3.3805]
[1725938295821,37.81508872,133.15,133.1,3.3805]
[1725938296125,22.54,133.15,133.11,3.3804]
[1725938296321,22.54,133.15,133.1,8.05]
[1725938297125,22.54,133.15,133.12,3.3802]
[1725938297323,3.379,133.17,133.12,3.3802]
[1725938297627,33.969,133.17,133.11,8.05]
[1725938297826,8.05,133.16,133.11,3.3802]
[1725938298015,11.4294,133.16,133.11,3.3802]
[1725938300820,3.3796,133.15,133.11,3.3802]
[1725938301824,11.79830993,133.16,133.1,10.7319]
[1725938302020,8.05,133.14,133.09,9.3597]
[1725938302229,8.05,133.14,133.09,1.3097]
[1725938302422,3.74830993,133.16,133.09,1.3097]
[1725938302423,8.05,133.13,133.09,1.3097]
[1725938302830,11.4302,133.13,133.09,4.6906]
[1725938303229,8.05,133.13,133.09,1.3097]
[1725938303431,3.3802,133.12,133.09,1.3097]
[1725938304133,3.3802,133.12,133.08,3.381]
[1725938308536,3.3802,133.12,133.09,3.3809]
[1725938309129,33.9701,133.13,133.09,3.3809]
[1725938309931,33.9701,133.13,133.06,11.88895693]
[1725938309932,8.05,133.13,133.1,3.3806]
[1725938310134,3.3798,133.14,133.09,8.05]
[1725938310531,25.9195,133.15,133.11,3.3803]
[1725938313238,3.3794,133.16,133.12,3.38]
[1725938313537,8.05,133.16,133.12,3.38]
[1725938314328,11.4293,133.16,133.12,3.38]
[1725938314534,11.4293,133.16,133.1,8.05]
[1725938315132,11.4293,133.16,133.12,3.38]
[1725938318635,3.3796,133.15,133.11,3.3804]
[1725938318837,3.3796,133.15,133.1,8.05]
[1725938319038,3.3796,133.15,133.07,4.1139]
[1725938319235,3.3796,133.15,133.11,3.3803]
[1725938320135,30.59,133.16,133.11,3.3803]
[1725938320136,3.3797,133.14,133.11,3.3803]
[1725938321255,3.38,133.13,133.09,8.05]
[1725938321944,3.38,133.13,133.1,3.3806]
[1725938326340,3.3798,133.14,133.11,3.3803]
[1725938329252,3.3799,133.13,133.11,3.3803]
[1725938329953,3.3798,133.14,133.11,3.3803]
[1725938331250,30.59,133.15,133.12,3.3801]
[1725938331251,3.3795,133.15,133.12,3.3801]
[1725938332651,3.3793,133.16,133.13,3.3799]
[1725938333455,30.59,133.17,133.13,3.3799]
[1725938333456,33.969,133.17,133.13,3.3799]
[1725938334050,3.3792,133.16,133.13,3.3799]
[1725938335149,33.969,133.17,133.13,3.3799]
[1725938335349,30.59,133.17,133.13,3.3799]
[1725938335960,3.3792,133.16,133.12,3.3801]
[1725938339758,22.54,133.15,133.07,4.1139]
[1725938339949,22.54,133.15,133.09,8.05]
[1725938340151,3.3798,133.14,133.1,3.3806]
[1725938340551,30.59,133.13,133.07,4.1139]
[1725938340764,3.3805,133.11,133.07,6.1116]
[1725938340953,3.3805,133.11,133.07,4.7535]
[1725938342959,3.3807,133.1,133.06,3.3816]
[1725938346351,3.3805,133.11,133.07,3.3814]
[1725938346961,3.3809,133.1,133.06,3.3817]
[1725938348367,30.59,133.12,133.06,3.3817]
[1725938348368,3.381,133.09,133.06,3.3817]
[1725938349054,3.3812,133.08,133.05,3.3818]
[1725938349261,30.59,133.08,133.02,8.05]
[1725938349862,30.59,133.08,133.03,3.3823]
[1725938350078,22.54,133.08,133.03,8.05]
[1725938350458,25.9214,133.08,133.04,3.382]
[1725938351266,3.3814,133.08,133.05,3.3819]
[1725938351459,3.3815,133.07,133.03,8.05]
[1725938351665,30.59,133.09,133.04,3.3821]
[1725938351863,30.59,133.09,133.03,8.05]
[1725938351864,30.59,133.08,133.03,8.05]
[1725938352265,3.3816,133.07,133.03,8.05]
[1725938352571,3.3816,133.07,133.03,3.3823]
[1725938352770,3.3818,133.06,133.03,3.3823]
[1725938353663,3.3816,133.07,133.03,3.3823]
[1725938354773,3.3817,133.06,133.03,3.3823]
[1725938361974,3.3816,133.07,133.04,3.3822]
[1725938364176,3.3817,133.06,133.03,3.3823]
[1725938365477,3.3817,133.06,133.04,3.3822]
[1725938365972,3.3815,133.07,133.04,3.3822]
[1725938369269,30.59,133.1,133.04,8.05]
[1725938369775,22.54,133.09,133.04,8.05]
[1725938370079,29.66123275,133.09,133.05,3.3818]
[1725938370285,25.9211,133.09,133.05,3.3818]
[1725938370666,29.62251191,133.09,133.05,3.3818]
[1725938371976,3.3813,133.08,133.05,3.3818]
[1725938373278,25.921,133.09,133.05,3.3818]
[1725938373480,25.921,133.09,133.04,8.05]
[1725938374179,25.921,133.09,133.05,3.3818]
[1725938374779,3.381,133.09,133.05,3.3818]
[1725938376379,3.3813,133.08,133.05,3.3818]
[1725938381280,8.05,133.08,133.0,2.6299]
[1725938381482,30.59,133.08,133.02,8.05]
[1725938381883,33.9714,133.08,133.04,3.382]
[1725938384479,30.59,133.08,133.0,2.6299]
[1725938384680,30.59,133.08,133.02,8.05]
[1725938385084,33.9713,133.08,133.04,3.3822]
[1725938388787,3.75780148,133.1,133.03,8.05]
[1725938388983,22.54,133.09,133.03,8.05]
[1725938389183,26.21386073,133.09,133.03,8.05]
[1725938389578,29.59506073,133.09,133.05,3.3819]
[1725938390192,3.3812,133.08,133.05,3.3819]
[1725938392396,3.381,133.09,133.03,8.05]
[1725938392798,3.381,133.09,133.05,3.3818]
[1725938397299,3.3813,133.08,133.05,3.3818]
[1725938401602,25.9213,133.08,133.05,3.3818]
[1725938402308,0.7775,133.14,133.04,8.05]
[1725938402504,22.54,133.13,133.06,8.05]
[1725938402701,22.54,133.11,133.06,8.05]
[1725938403502,30.59,133.11,133.05,1.348]
[1725938404212,25.921,133.09,133.05,1.348]
[1725938404427,22.54,133.09,133.05,1.348]
[1725938405912,30.59,133.09,133.02,8.05]
[1725938406106,30.59,133.07,133.02,8.05]
[1725938406302,30.59,133.07,133.01,9.3925]
[1725938407206,3.3819,133.06,133.03,3.3823]
[1725938409006,30.59,133.09,133.02,8.05]
[1725938409206,30.59,133.09,133.04,8.05]
[1725938409504,3.3813,133.08,133.05,3.3819]
[1725938411012,25.9216,133.07,133.04,3.3822]
[1725938415314,3.3817,133.06,133.04,3.3822]
[1725938416523,25.9216,133.07,133.04,3.3822]
[1725938418227,25.9212,133.08,133.05,3.3818]
[1725938423927,3.381,133.09,133.06,3.3816]
[1725938424243,22.54,133.1,133.05,11.74830049]
[1725938424428,22.54,133.1,133.05,8.05]
[1725938425022,22.54,133.1,133.05,11.7577004]
[1725938425222,25.9207,133.1,133.07,3.3813]
[1725938425425,22.54,133.1,133.05,8.05]
[1725938425625,22.54,133.09,133.05,8.05]
[1725938425829,25.921,133.09,133.06,3.3815]
[1725938426818,22.54,133.09,133.05,3.3819]
[1725938427219,22.54,133.09,133.05,7.07804888]
[1725938427426,25.9211,133.09,133.06,3.3816]
[1725938432933,25.9211,133.09,133.07,3.3815]
[1725938433135,22.54,133.12,133.07,8.05]
[1725938433329,22.54,133.12,133.08,8.05]
[1725938433523,25.9202,133.12,133.06,4.1143]
[1725938433728,142.93932546,133.13,133.06,2.7967]
[1725938433729,22.54,133.1,133.06,2.7967]
[1725938434134,25.9203,133.12,133.06,10.8467]
[1725938434928,22.54,133.1,133.06,10.8467]
[1725938435124,22.54,133.1,133.07,3.3813]
[1725938435834,22.54,133.1,133.08,3.3812]
[1725938436037,33.9705,133.11,133.08,3.3812]
[1725938438231,3.3805,133.11,133.08,3.3812]
[1725938440135,3.3807,133.1,133.07,3.3814]
[1725938440436,25.9207,133.1,133.07,3.3814]
[1725938440641,25.9207,133.1,133.06,2.7967]
[1725938440642,30.59,133.1,133.06,1.4152]
[1725938440838,3.3811,133.09,133.06,3.3816]
[1725938441532,25.9211,133.09,133.06,3.3816]
[1725938442537,3.3813,133.08,133.05,3.3819]
[1725938442742,22.54,133.08,133.02,10.8101]
[1725938443241,25.9213,133.08,133.04,3.382]
[1725938443634,22.54,133.08,133.04,3.382]
[1725938445134,3.3815,133.07,133.04,3.382]
[1725938446941,3.3813,133.08,133.05,3.3819]
[1725938453942,3.3815,133.07,133.04,11.4321]
[1725938454947,30.59,133.07,133.02,1.395]
[1725938455555,34.35118486,133.07,133.02,1.395]
[1725938456042,3.3821,133.05,133.02,1.395]
[1725938456247,3.3821,133.05,133.02,4.7777]
[1725938456549,3.3821,133.05,133.02,12.8277]
[1725938461749,3.3819,133.06,133.03,3.3824]
[1725938461950,22.54,133.06,133.02,1.395]
[1725938462267,22.54,133.06,133.05,8.05]
[1725938462456,30.59,133.06,132.96,2.7108]
[1725938462754,22.54,133.06,133.01,8.05]
[1725938463063,3.382,133.05,133.01,8.05]
[1725938463450,3.382,133.05,133.01,11.4328]
[1725938465052,3.3823,133.04,133.01,11.4328]
[1725938469052,3.3823,133.04,133.01,8.05]
[1725938475757,22.54,133.06,133.01,8.05]
[1725938476071,11.73176443,133.07,133.0,3.3831]
[1725938476072,22.54,133.04,133.0,11.4331]
[1725938476265,3.3826,133.03,133.0,11.4331]
[1725938479053,22.54,133.03,133.01,3.383]
[1725938479259,22.54,133.03,133.0,8.05]
[1725938480065,22.54,133.02,133.0,11.4331]
[1725938481159,3.3825,133.03,133.0,11.4331]
[1725938481563,3.3823,133.04,133.01,11.433]
[1725938481961,22.54,133.05,133.01,8.05]
[1725938482158,22.54,133.06,133.01,8.05]
[1725938482561,22.54,133.06,133.02,3.3826]
[1725938482757,22.54,133.06,133.02,8.05]
[1725938483063,22.54,133.06,133.04,8.05]
[1725938483467,22.54,133.06,133.03,3.3824]
[1725938483662,22.54,133.06,133.03,11.4324]
[1725938484168,22.54,133.05,133.03,11.4324]
[1725938485261,3.3817,133.06,133.03,11.4324]
[1725938485674,25.9216,133.07,133.03,11.4324]
[1725938485857,25.9216,133.07,133.04,3.3822]
[1725938487262,25.9216,133.07,133.03,11.4324]
[1725938487469,3.3818,133.06,133.03,11.4324]
[1725938487666,3.3818,133.06,133.03,8.05]
[1725938488457,3.3818,133.06,133.03,11.4325]
[1725938489467,25.9215,133.07,133.03,11.4325]
[1725938489768,22.54,133.07,133.03,3.3825]
[1725938491069,3.3817,133.06,133.03,3.3825]
[1725938492667,3.3817,133.06,133.02,8.05]
[1725938493768,3.3817,133.06,133.03,3.3823]
[1725938493972,25.9215,133.07,133.03,8.05]
[1725938494773,25.9215,133.07,133.04,3.3822]
[1725938499981,3.3818,133.06,133.03,3.3824]
[1725938501978,1.3681,133.11,133.04,8.05]
[1725938502279,22.54,133.08,133.04,8.05]
[1725938503177,3.3816,133.07,133.04,11.4321]
[1725938510083,1.3681,133.11,133.05,8.05]
[1725938510283,22.54,133.13,133.05,11.84567995]
[1725938510485,22.54,133.11,133.07,8.05]
[1725938510785,3.3808,133.1,133.07,11.4313]
[1725938521093,0.7775,133.19,133.09,8.05]
[1725938521094,23.3175,133.19,133.09,8.05]
[1725938521294,23.3175,133.19,133.06,3.85169781]
[1725938521295,22.54,133.17,133.12,8.05]
[1725938521499,3.3796,133.15,133.12,8.05]
[1725938521793,3.3796,133.15,133.11,11.4303]
[1725938522000,3.3797,133.14,133.11,11.4303]
[1725938522501,3.3797,133.14,133.11,8.05]
[1725938522798,3.38,133.13,133.1,3.3807]
[1725938524293,3.38,133.13,133.09,3.3809]
[1725938524593,3.3802,133.12,133.09,3.3809]
[1725938524793,8.05,133.13,133.08,3.3812]
[1725938525097,25.9203,133.12,133.08,3.3812]
[1725938527002,22.54,133.11,133.07,12.1406]
[1725938527198,22.54,133.11,133.07,9.3673]
[1725938527799,25.9205,133.11,133.07,12.7486]
[1725938527994,22.54,133.11,133.07,12.7486]
[1725938529195,22.54,133.11,133.06,3.85169781]
[1725938529395,22.54,133.09,133.04,8.05]
[1725938529798,25.921,133.09,133.06,8.05]
[1725938531199,22.54,133.08,133.06,8.05]
[1725938533403,3.381,133.09,133.06,8.05]
[1725938533896,3.381,133.09,133.06,11.4317]
[1725938534498,3.381,133.09,133.06,8.05]
[1725938535602,3.381,133.09,133.06,11.4316]
[1725938535805,25.9208,133.1,133.06,11.4316]
[1725938536401,25.9208,133.1,133.07,3.3814]
[1725938536905,3.3808,133.1,133.07,3.3814]
[1725938540510,3.3808,133.1,133.07,11.4314]
[1725938546601,3.3806,133.11,133.08,11.4312]
[1725938546916,33.3267,133.14,133.08,8.05]
[1725938547102,33.3267,133.14,133.09,3.3809]
[1725938547505,33.3267,133.14,133.08,8.05]
[1725938547908,3.3806,133.11,133.08,11.4312]
[1725938548105,33.3267,133.14,133.08,11.4312]
[1725938549011,3.3806,133.11,133.08,11.4312]
[1725938552006,3.381,133.09,133.07,8.05]
[1725938553610,30.59,133.11,133.05,15.20576076]
[1725938553915,22.54,133.1,133.05,11.4318]
[1725938554314,22.54,133.1,133.06,3.8088207]
[1725938554514,22.54,133.1,133.05,8.05]
[1725938555322,3.3814,133.08,133.05,11.4318]
[1725938555908,3.3814,133.08,133.06,3.3817]
[1725938556318,3.381,133.09,133.06,3.3817]
[1725938558816,3.381,133.09,133.07,8.05]
[1725938559013,3.381,133.09,133.07,11.4315]
[1725938559212,3.3808,133.1,133.07,11.4315]
[1725938561323,3.381,133.09,133.07,11.4315]
[1725938565124,3.3808,133.1,133.07,11.4315]
[1725938565324,22.54,133.12,133.08,3.3812]
[1725938565622,3.3806,133.11,133.08,3.3812]
[1725938566028,3.3806,133.11,133.08,11.4312]
[1725938569126,22.54,133.12,133.08,8.05]
[1725938569323,23.8936,133.14,133.09,8.05]
[1725938570329,3.3801,133.13,133.1,3.3807]
[1725938571630,25.9198,133.14,133.11,3.3804]
[1725938573031,3.3799,133.13,133.1,3.3806]
[1725938573530,25.9198,133.14,133.11,3.3804]
[1725938580532,25.9198,133.14,133.11,11.4304]
[1725938583544,25.9198,133.14,133.11,8.05]
[1725938584941,25.9198,133.14,133.11,11.4304]
[1725938585144,3.3798,133.14,133.11,11.4304]
[1725938586048,3.3798,133.14,133.11,8.05]
[1725938586940,8.05,133.16,133.06,4.0917]
[1725938586941,1.374,133.17,133.12,8.05]
[1725938587138,22.54,133.2,133.13,11.83109025]
[1725938587344,53.900245,133.2,133.15,8.05]
[1725938587644,3.3788,133.18,133.15,11.4294]
[1725938587844,22.54,133.2,133.15,11.4294]
[1725938588452,3.3785,133.19,133.15,11.4294]
[1725938588955,22.54,133.2,133.15,11.4294]
[1725938590050,3.3787,133.18,133.15,11.4294]
[1725938590249,3.3787,133.18,133.14,3.3796]
[1725938590453,22.54,133.19,133.14,3.3796]
[1725938590649,3.3789,133.17,133.14,3.3796]
[1725938591252,22.54,133.19,133.15,11.4294]
[1725938591450,22.54,133.19,133.15,8.05]
[1725938591846,3.3788,133.18,133.14,11.4296]
[1725938594760,3.3789,133.17,133.14,11.4296]
[1725938596361,3.3788,133.18,133.14,11.4296]
[1725938597153,3.3788,133.18,133.15,8.05]
[1725938603161,22.54,133.19,133.13,7.22541807]
[1725938603356,22.54,133.19,133.13,8.05]
[1725938603862,22.54,133.19,133.13,11.73585874]
[1725938604163,3.3791,133.17,133.14,3.3796]
[1725938604370,22.54,133.19,133.15,8.05]
[1725938604566,3.3789,133.18,133.15,8.05]
[1725938605461,3.3789,133.17,133.15,8.05]
[1725938606563,3.3792,133.16,133.13,11.4298]
[1725938610165,22.54,133.18,133.16,3.3791]
[1725938610670,22.54,133.18,133.16,11.4291]
[1725938611065,3.3785,133.19,133.16,11.4291]
[1725938611469,3.3782,133.2,133.17,3.3789]
[1725938612774,22.54,133.2,133.16,8.05]
[1725938613764,3.70173347,133.21,133.16,8.05]
[1725938614072,22.54,133.22,133.13,4.0549]
[1725938614374,34.26054845,133.22,133.16,8.05]
[1725938614682,3.3784,133.2,133.16,11.429]
[1725938615473,22.54,133.19,133.13,4.0549]
[1725938615678,22.54,133.16,133.06,1.3533]
[1725938615883,22.54,133.14,133.06,4.0644]
[1725938616170,22.54,133.14,133.1,11.4307]
[1725938616171,3.38,133.13,133.1,11.4307]
[1725938616361,26.32325567,133.14,133.1,11.4307]
[1725938616964,22.54,133.15,133.1,8.05]
[1725938617163,22.54,133.13,133.1,8.05]
[1725938617779,3.3802,133.12,133.08,11.4311]
[1725938618663,3.3802,133.12,133.09,3.3809]
[1725938618865,25.92,133.13,133.09,3.3809]
[1725938620180,3.3802,133.12,133.08,11.4311]
[1725938620478,30.59,133.13,133.07,8.05]
[1725938620876,22.54,133.11,133.06,10.7611]
[1725938621085,22.54,133.11,133.06,9.3549]
[1725938621673,26.34608308,133.11,133.06,9.3549]
[1725938621882,26.34608308,133.11,133.06,12.7366]
[1725938622074,22.54,133.12,133.07,8.05]
[1725938622379,22.54,133.12,133.09,8.05]
[1725938623073,3.3805,133.11,133.09,8.05]
[1725938625580,3.3805,133.11,133.08,3.381]
[1725938626176,3.3805,133.11,133.07,11.4314]
[1725938628978,25.9203,133.12,133.07,8.05]
[1725938630086,25.9203,133.12,133.09,3.3809]
[1725938630273,25.9203,133.12,133.07,8.05]